bitfinex-derivatives/quotes_SOLF0:USTF0_20260208
["timestamp","ask_amount","ask_price","bid_price","bid_amount"]
[1770525239693,17.13109515,87.129,87.086,17.18175801]
[1770525240704,10.3377,87.128,87.086,17.18175801]
[1770525240900,17.13109515,87.127,87.086,17.18175801]
[1770525241804,17.13109515,87.135,87.091,17.18175801]
[1770525242000,17.13109515,87.135,87.1,3.3705654]
[1770525242200,17.13109515,87.146,87.1,20.55232341]
[1770525243708,17.13109515,87.144,87.1,20.55232341]
[1770525245108,17.13109515,87.156,87.121,17.18175801]
[1770525245709,17.13109515,87.156,87.12,3.3705654]
[1770525245907,17.13109515,87.156,87.11,21.08398996]
[1770525249613,10.3345,87.155,87.11,21.08398996]
[1770525251113,10.3345,87.155,87.11,17.71342456]
[1770525251318,10.3345,87.155,87.074,10.344]
[1770525251319,10.3345,87.155,87.12,21.08398996]
[1770525253419,10.3345,87.155,87.13,19.839749]
[1770525254111,10.3331,87.167,87.13,19.839749]
[1770525254319,10.3331,87.167,87.084,10.3428]
[1770525254320,10.3331,87.167,87.14,19.839749]
[1770525255115,10.3331,87.167,87.13,6.54e-05]
[1770525255319,10.3331,87.167,87.12,3.3705654]
[1770525255621,10.3331,87.167,87.13,3.3705654]
[1770525255814,10.3331,87.167,87.064,345.83749968]
[1770525255815,17.25644099,87.154,87.1,3.3705654]
[1770525256020,17.25644099,87.149,87.09,3.3705654]
[1770525256520,17.25644099,87.149,87.1,3.3705654]
[1770525257020,17.25644099,87.149,87.101,16.4691836]
[1770525257411,10.3367,87.136,87.101,16.4691836]
[1770525257619,17.25644099,87.149,87.111,16.4691836]
[1770525261914,14.14049346,87.191,87.064,311.36749968]
[1770525261915,17.25644099,87.139,87.098,16.4691836]
[1770525262115,17.25644099,87.137,87.098,16.4691836]
[1770525262322,17.25644099,87.135,87.098,16.4691836]
[1770525262521,17.25644099,87.133,87.098,16.4691836]
[1770525262822,9.11917698,87.132,87.098,16.4691836]
[1770525263023,17.25644099,87.133,87.098,16.4691836]
[1770525263315,9.12626144,87.132,87.098,16.4691836]
[1770525263515,9.12626144,87.131,87.098,16.4691836]
[1770525263722,9.12626144,87.13,87.098,16.4691836]
[1770525263921,9.12626144,87.129,87.098,16.4691836]
[1770525264125,9.12626144,87.128,87.098,16.4691836]
[1770525264426,9.12626144,87.127,87.098,16.4691836]
[1770525264620,17.25644099,87.133,87.098,16.4691836]
[1770525264821,9.13943378,87.132,87.098,16.4691836]
[1770525265016,9.13943378,87.131,87.098,16.4691836]
[1770525265216,9.13943378,87.13,87.098,16.4691836]
[1770525265419,9.13943378,87.129,87.098,16.4691836]
[1770525265620,9.13943378,87.128,87.098,16.4691836]
[1770525265822,9.13943378,87.127,87.098,16.4691836]
[1770525266126,9.13943378,87.126,87.098,16.4691836]
[1770525266326,9.13943378,87.125,87.098,16.4691836]
[1770525266529,9.13943378,87.124,87.098,16.4691836]
[1770525266727,9.13943378,87.123,87.098,16.4691836]
[1770525266928,9.13943378,87.122,87.098,16.4691836]
[1770525267129,9.13943378,87.121,87.098,16.4691836]
[1770525267321,17.25644099,87.133,87.098,16.4691836]
[1770525267529,9.14712733,87.132,87.098,16.4691836]
[1770525267724,9.14712733,87.131,87.098,16.4691836]
[1770525268031,9.14712733,87.13,87.098,16.4691836]
[1770525268231,9.14712733,87.129,87.098,16.4691836]
[1770525268431,9.14712733,87.128,87.098,16.4691836]
[1770525268730,9.14712733,87.127,87.098,16.4691836]
[1770525268927,9.14712733,87.126,87.098,16.4691836]
[1770525269125,17.25644099,87.157,87.111,16.4691836]
[1770525269429,17.25644099,87.155,87.111,16.4691836]
[1770525269622,26.40189394,87.154,87.111,16.4691836]
[1770525269822,9.14545295,87.153,87.111,16.4691836]
[1770525270016,9.14545295,87.152,87.111,16.4691836]
[1770525270221,9.14545295,87.151,87.111,16.4691836]
[1770525270422,9.14545295,87.15,87.111,16.4691836]
[1770525270622,9.14545295,87.149,87.111,16.4691836]
[1770525270828,9.14545295,87.148,87.111,16.4691836]
[1770525271029,9.14545295,87.147,87.111,16.4691836]
[1770525271231,17.25644099,87.154,87.111,16.4691836]
[1770525271431,10.3339,87.16,87.111,16.4691836]
[1770525271432,17.25644099,87.152,87.111,16.4691836]
[1770525271629,17.25644099,87.15,87.111,16.4691836]
[1770525271827,9.14775414,87.149,87.111,16.4691836]
[1770525272131,9.14775414,87.148,87.111,16.4691836]
[1770525272325,9.14775414,87.147,87.111,16.4691836]
[1770525272525,17.25644099,87.145,87.101,16.4691836]
[1770525272724,9.14927144,87.144,87.101,16.4691836]
[1770525272930,9.14927144,87.143,87.101,16.4691836]
[1770525273230,9.14927144,87.142,87.101,16.4691836]
[1770525273524,17.25644099,87.145,87.101,16.4691836]
[1770525273525,9.14927144,87.141,87.101,16.4691836]
[1770525273730,9.14927144,87.14,87.101,16.4691836]
[1770525273929,9.14927144,87.139,87.101,16.4691836]
[1770525274232,17.25644099,87.145,87.101,16.4691836]
[1770525274233,9.14927144,87.138,87.101,16.4691836]
[1770525274431,9.14927144,87.137,87.101,16.4691836]
[1770525274638,10.3358,87.144,87.101,16.4691836]
[1770525274837,9.15329215,87.143,87.101,16.4691836]
[1770525275128,9.15329215,87.142,87.101,16.4691836]
[1770525275334,9.15329215,87.141,87.101,16.4691836]
[1770525275631,9.15329215,87.14,87.101,16.4691836]
[1770525275832,9.15329215,87.139,87.101,16.4691836]
[1770525276030,9.15329215,87.138,87.101,16.4691836]
[1770525276226,10.3358,87.144,87.101,16.4691836]
[1770525276429,9.15374358,87.143,87.101,16.4691836]
[1770525276629,9.15374358,87.142,87.101,16.4691836]
[1770525276933,9.15374358,87.141,87.101,16.4691836]
[1770525277129,9.15374358,87.14,87.101,16.4691836]
[1770525277333,9.15374358,87.139,87.101,16.4691836]
[1770525277536,10.3358,87.144,87.101,16.4691836]
[1770525277734,9.15385346,87.143,87.101,16.4691836]
[1770525277923,9.15385346,87.142,87.101,16.4691836]
[1770525278122,9.15385346,87.141,87.101,16.4691836]
[1770525278427,9.15385346,87.14,87.101,16.4691836]
[1770525278629,17.6250747,87.156,87.121,16.26889163]
[1770525278830,17.6250747,87.154,87.121,16.26889163]
[1770525279029,17.6250747,87.154,87.064,311.36749968]
[1770525279030,3.3705654,87.14,87.096,16.26889163]
[1770525279231,17.6250747,87.138,87.096,16.26889163]
[1770525279430,17.6250747,87.136,87.096,16.26889163]
[1770525279630,3.3705654,87.14,87.096,16.26889163]
[1770525279631,17.6250747,87.134,87.096,16.26889163]
[1770525281736,26.7818583,87.133,87.096,16.26889163]
[1770525281938,9.1567836,87.132,87.096,16.26889163]
[1770525282139,17.6250747,87.133,87.096,16.26889163]
[1770525282340,9.13998208,87.132,87.096,16.26889163]
[1770525282541,17.6250747,87.133,87.096,16.26889163]
[1770525282740,9.13998208,87.132,87.096,16.26889163]
[1770525282942,17.6250747,87.133,87.096,16.26889163]
[1770525283240,9.13998208,87.132,87.096,16.26889163]
[1770525283437,17.6250747,87.129,87.078,16.26889163]
[1770525283638,17.6250747,87.127,87.078,16.26889163]
[1770525283853,17.6250747,87.125,87.078,16.26889163]
[1770525284743,17.6250747,87.124,87.078,16.26889163]
[1770525286439,17.6250747,87.124,87.081,16.26889163]
[1770525287843,17.6250747,87.122,87.081,16.26889163]
[1770525288037,17.6250747,87.12,87.081,16.26889163]
[1770525288239,17.6250747,87.118,87.081,16.26889163]
[1770525288438,17.6250747,87.116,87.081,16.26889163]
[1770525289346,17.6250747,87.114,87.081,16.26889163]
[1770525289541,26.76129285,87.113,87.081,16.26889163]
[1770525289843,9.13621815,87.112,87.081,16.26889163]
[1770525290045,9.13621815,87.111,87.081,16.26889163]
[1770525290245,17.6250747,87.113,87.081,16.26889163]
[1770525291144,9.13371287,87.112,87.081,16.26889163]
[1770525291344,9.13371287,87.111,87.081,16.26889163]
[1770525291544,9.13371287,87.11,87.081,16.26889163]
[1770525291744,17.6250747,87.113,87.081,16.26889163]
[1770525292048,9.13168291,87.112,87.081,16.26889163]
[1770525292345,9.13168291,87.111,87.081,16.26889163]
[1770525292538,17.6250747,87.109,87.07,19.64320962]
[1770525292738,9.13168291,87.108,87.07,19.64320962]
[1770525292940,9.13168291,87.107,87.07,19.64320962]
[1770525293138,9.13168291,87.106,87.07,19.64320962]
[1770525293339,17.6250747,87.109,87.07,19.64320962]
[1770525293534,9.12834523,87.108,87.07,19.64320962]
[1770525293739,9.12834523,87.107,87.07,19.64320962]
[1770525293941,9.12834523,87.106,87.07,19.64320962]
[1770525294143,17.6250747,87.109,87.07,19.64320962]
[1770525294339,9.12641139,87.108,87.07,19.64320962]
[1770525294640,17.6250747,87.109,87.07,19.64320962]
[1770525294839,17.6250747,87.121,87.081,16.26889163]
[1770525298945,10.3371,87.133,87.081,16.26889163]
[1770525298946,17.6250747,87.119,87.081,16.26889163]
[1770525299848,9.12853232,87.118,87.081,16.26889163]
[1770525300046,9.12853232,87.117,87.081,16.26889163]
[1770525300347,9.12853232,87.116,87.081,16.26889163]
[1770525300547,9.12853232,87.115,87.081,16.26889163]
[1770525300744,9.12853232,87.114,87.081,16.26889163]
[1770525300946,9.13310639,87.113,87.081,16.26889163]
[1770525301148,17.6250747,87.111,87.071,16.26889163]
[1770525301446,17.6250747,87.109,87.06,3.37431799]
[1770525301648,17.6250747,87.099,87.058,16.26889163]
[1770525301843,17.6250747,87.097,87.058,16.26889163]
[1770525302042,17.6250747,87.095,87.058,16.26889163]
[1770525302244,9.13321026,87.094,87.061,16.26889163]
[1770525302443,17.6250747,87.103,87.07,19.64320962]
[1770525303842,17.6250747,87.099,87.058,16.26889163]
[1770525304044,17.6250747,87.097,87.058,16.26889163]
[1770525304349,17.6250747,87.095,87.058,16.26889163]
[1770525304549,17.6250747,87.093,87.058,16.26889163]
[1770525304743,17.6250747,87.091,87.046,16.26889163]
[1770525304940,17.6250747,87.089,87.031,16.26889163]
[1770525305242,17.6250747,87.087,87.031,16.26889163]
[1770525305443,17.6250747,87.085,87.041,16.26889163]
[1770525305649,17.39799656,87.083,87.041,16.26889163]
[1770525305849,9.13031338,87.082,87.041,16.26889163]
[1770525306145,9.13031338,87.081,87.041,16.26889163]
[1770525306349,17.39799656,87.083,87.041,16.26889163]
[1770525306538,26.51935526,87.082,87.041,16.26889163]
[1770525306742,17.39799656,87.082,87.041,16.26889163]
[1770525310653,17.39799656,87.1,87.051,17.33691493]
[1770525310855,17.39799656,87.111,87.07,3.37431799]
[1770525311154,17.39799656,87.109,87.07,3.37431799]
[1770525311549,20.668,87.16,87.061,17.33691493]
[1770525311550,17.39799656,87.106,87.061,17.33691493]
[1770525311951,17.39799656,87.106,87.07,3.37431799]
[1770525312352,17.39799656,87.106,87.061,17.33691493]
[1770525313352,17.39799656,87.106,87.07,3.37431799]
[1770525313558,17.39799656,87.106,87.071,16.60714757]
[1770525317058,17.39799656,87.106,86.999,161.0457]
[1770525317059,16.150152,87.127,87.09,19.98146556]
[1770525317763,16.150152,87.138,87.1,3.37431799]
[1770525317955,16.150152,87.136,87.1,3.37431799]
[1770525319853,16.150152,87.136,87.09,19.98146556]
[1770525321061,16.150152,87.134,87.09,19.98146556]
[1770525321260,9.12900014,87.133,87.09,19.98146556]
[1770525321462,16.150152,87.134,87.09,19.98146556]
[1770525321657,9.13002847,87.133,87.09,19.98146556]
[1770525321859,16.150152,87.134,87.09,19.98146556]
[1770525322167,9.13002847,87.133,87.09,19.98146556]
[1770525322462,16.150152,87.134,87.09,19.98146556]
[1770525322664,9.13108521,87.133,87.09,19.98146556]
[1770525322865,16.150152,87.134,87.09,19.98146556]
[1770525323065,9.13108446,87.133,87.09,19.98146556]
[1770525323263,16.150152,87.134,87.09,19.98146556]
[1770525323264,9.13108446,87.132,87.09,19.98146556]
[1770525323465,16.150152,87.134,87.09,19.98146556]
[1770525323670,10.3374,87.131,87.09,19.98146556]
[1770525324166,26.487552,87.131,87.09,19.98146556]
[1770525324865,16.150152,87.13,87.09,19.98146556]
[1770525325865,10.3374,87.131,87.09,19.98146556]
[1770525326165,10.3374,87.131,87.101,16.60714757]
[1770525329766,16.150152,87.141,87.101,16.60714757]
[1770525330067,16.150152,87.139,87.101,16.60714757]
[1770525330265,16.150152,87.137,87.101,16.60714757]
[1770525330466,16.150152,87.135,87.101,16.60714757]
[1770525330669,16.150152,87.129,87.09,16.60714757]
[1770525330871,16.150152,87.119,87.071,16.60714757]
[1770525331061,16.150152,87.117,87.071,16.60714757]
[1770525332168,16.150152,87.109,87.071,16.60714757]
[1770525333568,16.150152,87.089,87.041,16.60714757]
[1770525337860,15.8814122,87.11,87.061,16.42638904]
[1770525340569,14.14049346,87.143,87.033,10.3488]
[1770525340570,15.8814122,87.099,87.049,16.42638904]
[1770525341070,15.8814122,87.097,87.049,16.42638904]
[1770525341259,25.01547456,87.096,87.049,16.42638904]
[1770525341461,15.8814122,87.096,87.049,16.42638904]
[1770525344878,15.8814122,87.095,87.039,16.42638904]
[1770525345173,19.25573019,87.08,87.039,16.42638904]
[1770525345475,15.8814122,87.08,87.039,16.42638904]
[1770525348676,13.71661799,87.09,87.041,16.42638904]
[1770525348876,15.8814122,87.1,87.051,16.42638904]
[1770525349676,10.3412,87.099,87.051,16.42638904]
[1770525349877,15.8814122,87.089,87.04,3.37431799]
[1770525350075,15.8814122,87.089,87.038,16.42638904]
[1770525350780,15.8814122,87.086,87.038,16.42638904]
[1770525352882,10.3429,87.084,87.038,16.42638904]
[1770525353482,26.2243122,87.084,87.038,16.42638904]
[1770525355387,15.8814122,87.078,87.021,16.42638904]
[1770525355588,15.8814122,87.069,87.021,16.42638904]
[1770525356483,19.25839976,87.06,87.021,16.42638904]
[1770525356778,19.25839976,87.06,87.01,16.42638904]
[1770525357893,10.3472,87.048,87.01,16.42638904]
[1770525358593,15.8814122,87.059,87.01,16.42638904]
[1770525360693,15.8814122,87.059,87.01,19.8033766]
[1770525361391,15.8814122,87.059,87.01,16.42638904]
[1770525361589,3.37698756,87.05,87.01,16.42638904]
[1770525361893,19.25839976,87.05,87.01,16.42638904]
[1770525362293,15.8814122,87.05,87.01,16.42638904]
[1770525364393,15.8814122,87.039,86.991,16.42638904]
[1770525367900,15.00017275,87.056,87.01,19.52689271]
[1770525368606,15.00017275,87.049,87.0,16.14990515]
[1770525369805,15.00017275,87.049,86.956,1.99977014]
[1770525369806,15.00017275,87.039,86.989,16.14990515]
[1770525370297,15.00017275,87.029,86.989,16.14990515]
[1770525371102,15.00017275,87.026,86.978,16.14990515]
[1770525372898,16.27561078,87.019,86.978,16.14990515]
[1770525373709,16.27561078,86.999,86.965,15.0894565]
[1770525373903,16.27561078,87.01,86.965,15.0894565]
[1770525374109,16.27561078,87.007,86.97,15.0894565]
[1770525374309,451.29721259,87.044,86.889,20.732]
[1770525374310,16.27561078,86.999,86.956,15.0894565]
[1770525377705,16.27561078,86.997,86.956,15.0894565]
[1770525378402,10.3536,86.994,86.941,15.0894565]
[1770525378607,16.27561078,86.989,86.941,15.0894565]
[1770525379706,10.3544,86.988,86.941,15.0894565]
[1770525379907,26.63001078,86.988,86.941,15.0894565]
[1770525381311,16.27561078,86.979,86.941,15.0894565]
[1770525381610,16.27561078,86.979,86.941,5.65e-05]
[1770525382403,16.27561078,86.969,86.92,3.37698756]
[1770525383414,16.27561078,86.969,86.921,15.0894565]
[1770525383613,10.3586,86.952,86.921,15.0894565]
[1770525384512,16.27561078,86.947,86.9,318.85046331]
[1770525384712,16.27561078,86.947,86.901,15.0894565]
[1770525385602,3.37698756,86.95,86.89,3.37698756]
[1770525385603,16.27561078,86.945,86.89,3.37698756]
[1770525385803,16.27561078,86.929,86.878,15.0894565]
[1770525386214,16.27561078,86.929,86.88,3.37698756]
[1770525386409,16.27561078,86.926,86.878,15.0894565]
[1770525387007,16.27561078,86.909,86.851,15.0894565]
[1770525387207,16.27561078,86.889,86.84,18.46644406]
[1770525388212,16.27561078,86.887,86.84,18.46644406]
[1770525388414,16.27561078,86.903,86.861,15.0894565]
[1770525388805,10.3629,86.916,86.861,15.0894565]
[1770525389011,16.27561078,86.915,86.861,15.0894565]
[1770525389906,161.1162,86.962,86.861,15.0894565]
[1770525389907,16.27561078,86.913,86.87,3.37698756]
[1770525390107,16.27561078,86.913,86.871,15.0894565]
[1770525390714,16.27561078,86.913,86.88,3.37698756]
[1770525392413,26.63711078,86.927,86.89,3.37698756]
[1770525393016,26.63711078,86.927,86.88,15.0894565]
[1770525393017,16.27561078,86.926,86.88,18.46644406]
[1770525393415,16.27561078,86.919,86.87,3.37698756]
[1770525394018,10.3627,86.918,86.87,3.37698756]
[1770525394215,16.27561078,86.909,86.866,15.0894565]
[1770525394418,16.27561078,86.909,86.854,15.0894565]
[1770525394810,16.27561078,86.909,86.86,3.37698756]
[1770525395012,16.27561078,86.909,86.86,18.46644406]
[1770525395013,10.3642,86.905,86.86,18.46644406]
[1770525395207,16.27561078,86.909,86.871,15.0894565]
[1770525395412,16.27561078,86.909,86.813,10.3751]
[1770525395614,16.27561078,86.909,86.86,3.37698756]
[1770525396221,10.3643,86.905,86.87,3.37698756]
[1770525396619,10.3643,86.905,86.87,8.756e-05]
[1770525396815,10.3643,86.905,86.81,2.00311404]
[1770525396816,10.3625,86.92,86.88,3.37698756]
[1770525397915,25.93248355,86.92,86.88,3.37698756]
[1770525398719,25.93248355,86.92,86.88,8.756e-05]
[1770525399126,10.3625,86.92,86.89,7.93321374]
[1770525399726,15.56998355,86.933,86.89,7.93321374]
[1770525401225,15.56998355,86.933,86.9,3.37698756]
[1770525401527,15.56998355,86.947,86.901,4.59930615]
[1770525407526,15.56998355,86.947,86.91,3.37698756]
[1770525411533,15.56998355,86.947,86.901,4.59930615]
[1770525418540,15.56998355,86.945,86.901,4.59930615]
[1770525419136,15.56998355,86.943,86.901,4.59930615]
[1770525421845,15.56998355,86.984,86.931,4.86115411]
[1770525422046,15.56998355,86.984,86.942,4.86115411]
[1770525422931,15.56998355,86.984,86.95,3.38717808]
[1770525423544,15.56998355,86.997,86.961,4.90109778]
[1770525424141,15.56998355,86.997,86.949,4.25517104]
[1770525424740,15.56998355,86.997,86.95,3.38717808]
[1770525424941,15.56998355,86.997,86.96,7.6582893]
[1770525426145,15.18269533,87.019,86.97,3.38717808]
[1770525426645,15.18269533,87.019,86.96,4.27111122]
[1770525426850,15.18269533,87.019,86.96,7.6582893]
[1770525428144,15.18269533,87.009,86.96,4.27111122]
[1770525428349,15.18269533,86.999,86.95,3.38717808]
[1770525430638,15.18269533,86.989,86.935,3.44830826]
[1770525430848,15.18269533,86.979,86.935,3.44830826]
[1770525431748,15.18269533,86.979,86.931,3.46303709]
[1770525431948,15.18269533,86.979,86.941,3.46303709]
[1770525432954,14.68014826,86.99,86.95,3.38717808]
[1770525433855,14.68014826,86.99,86.943,4.2645074]
[1770525434058,14.68014826,86.99,86.95,7.48095411]
[1770525434249,14.68014826,86.99,86.951,4.09377603]
[1770525434445,14.63510113,87.009,86.97,3.38717808]
[1770525435457,14.63510113,87.009,86.961,4.10750873]
[1770525437059,14.63510113,86.999,86.95,3.38717808]
[1770525437255,14.63510113,86.999,86.951,3.47642399]
[1770525439754,14.63510113,86.999,86.961,3.91221308]
[1770525440257,14.63510113,86.999,86.96,3.38717808]
[1770525440456,14.63510113,86.999,86.948,3.81549938]
[1770525441157,14.63510113,86.999,86.96,3.38717808]
[1770525441958,14.63510113,86.999,86.95,3.38717808]
[1770525442664,14.63510113,87.011,86.961,3.84350709]
[1770525446466,14.63510113,87.011,86.963,3.75901786]
[1770525447462,14.63510113,87.024,86.976,3.77100711]
[1770525447665,454.89643881,87.044,86.981,3.77100711]
[1770525447666,14.63510113,87.023,86.981,3.77100711]
[1770525450268,14.63510113,87.036,86.991,4.06455685]
[1770525451062,9.06558824,87.035,86.991,4.06455685]
[1770525451368,14.63510113,87.033,86.991,4.06455685]
[1770525454675,14.63510113,87.05,87.01,3.38717808]
[1770525454964,14.63510113,87.05,87.001,4.35068747]
[1770525457066,18.02227921,87.05,87.001,4.35068747]
[1770525459962,15.12258757,87.039,86.98,3.38717808]
[1770525460164,15.12258757,87.029,86.98,3.38717808]
[1770525462776,15.12258757,87.029,86.981,4.57153016]
[1770525463078,15.12258757,87.029,86.99,3.38717808]
[1770525463875,15.12258757,87.029,86.991,4.58157154]
[1770525464079,15.12258757,87.029,87.0,3.38717808]
[1770525465178,15.12258757,87.052,87.01,7.88486479]
[1770525465373,15.12258757,87.05,87.01,7.88486479]
[1770525465570,15.12258757,87.049,87.01,7.88486479]
[1770525471682,15.12258757,87.049,87.011,4.93431222]
[1770525474677,15.12258757,87.049,87.015,10.351]
[1770525475280,15.12258757,87.049,86.961,161.1156]
[1770525475281,15.12258757,87.049,87.004,10.3524]
[1770525477285,15.12258757,87.049,87.0,5.26019098]
[1770525477580,15.12258757,87.049,87.0,8.63906216]
[1770525478173,15.12258757,87.049,87.003,10.3525]
[1770525481486,3.37887118,87.05,87.0,5.26019098]
[1770525481487,15.12258757,87.047,87.0,5.26019098]
[1770525481687,15.12258757,87.045,87.0,5.26019098]
[1770525481985,15.12258757,87.043,87.0,5.26019098]
[1770525482186,15.12258757,87.041,87.0,5.26019098]
[1770525482487,15.12258757,87.039,87.0,8.63906216]
[1770525483087,15.12258757,87.039,87.0,5.26019098]
[1770525485286,8.757e-05,87.039,87.003,5.30718434]
[1770525485488,3.37887118,87.07,87.011,14.75382428]
[1770525485695,9.09188526,87.069,87.011,14.75382428]
[1770525485879,9.09188526,87.068,87.011,14.75382428]
[1770525486082,9.09188526,87.067,87.011,14.75382428]
[1770525486286,9.09188526,87.066,87.011,14.75382428]
[1770525486484,9.09188526,87.065,87.011,14.75382428]
[1770525486681,9.09188526,87.064,87.012,10.3514]
[1770525486987,9.09188526,87.063,87.013,15.49519112]
[1770525487186,9.09188526,87.062,87.02,3.37887118]
[1770525487387,15.57629684,87.06,87.02,3.37887118]
[1770525487585,15.57629684,87.058,87.02,3.37887118]
[1770525487889,15.57629684,87.056,87.013,15.49519112]
[1770525488083,15.57629684,87.054,87.013,15.49519112]
[1770525488688,15.57629684,87.054,87.021,10.3503]
[1770525489288,15.57629684,87.052,87.021,10.3503]
[1770525489586,15.57629684,87.052,87.013,15.49519112]
[1770525490391,15.57629684,87.05,87.003,15.49519112]
[1770525490690,15.57629684,87.048,87.003,15.49519112]
[1770525490890,15.57629684,87.046,87.01,3.37887118]
[1770525491684,15.57629684,87.046,87.01,18.8740623]
[1770525492191,9.13442445,87.045,87.01,18.8740623]
[1770525492392,15.57629684,87.046,87.01,18.8740623]
[1770525492592,9.13442445,87.045,87.02,3.37887118]
[1770525492794,16.31135619,87.058,87.02,19.18828795]
[1770525493088,16.31135619,87.056,87.02,19.18828795]
[1770525493288,16.31135619,87.054,87.02,19.18828795]
[1770525493495,9.13441286,87.053,87.02,19.18828795]
[1770525493689,16.31135619,87.051,87.02,19.18828795]
[1770525493893,9.13441286,87.05,87.02,15.80941677]
[1770525494091,9.13441286,87.049,87.02,15.80941677]
[1770525494290,9.13441286,87.048,87.02,15.80941677]
[1770525494490,9.13441286,87.047,87.02,15.80941677]
[1770525494695,9.13441286,87.046,87.02,15.80941677]
[1770525494994,9.13441286,87.045,87.02,15.80941677]
[1770525495192,9.13441286,87.044,87.02,15.80941677]
[1770525495389,16.31135619,87.051,87.02,15.80941677]
[1770525495590,9.13815575,87.05,87.02,15.80941677]
[1770525495889,9.13815575,87.049,87.02,15.80941677]
[1770525496091,9.13815575,87.048,87.02,15.80941677]
[1770525496296,9.13815575,87.047,87.02,15.80941677]
[1770525496495,9.13815575,87.046,87.02,15.80941677]
[1770525496699,9.13815575,87.045,87.02,15.80941677]
[1770525496994,9.13815575,87.044,87.02,15.80941677]
[1770525497196,9.13815575,87.043,87.02,15.80941677]
[1770525497396,16.31135619,87.051,87.02,15.80941677]
[1770525497597,9.14043095,87.05,87.02,15.80941677]
[1770525497795,9.14043095,87.049,87.02,15.80941677]
[1770525497997,9.14043095,87.048,87.02,15.80941677]
[1770525498193,9.14043095,87.047,87.02,15.80941677]
[1770525498386,9.14043095,87.046,87.02,15.80941677]
[1770525498589,9.14043095,87.045,87.02,15.80941677]
[1770525498795,16.31135619,87.051,87.02,15.80941677]
[1770525498997,9.14122278,87.05,87.02,15.80941677]
[1770525499199,9.14122278,87.049,87.02,15.80941677]
[1770525499394,9.14122278,87.048,87.02,15.80941677]
[1770525499696,16.31135619,87.051,87.02,15.80941677]
[1770525499697,9.14122278,87.047,87.02,15.80941677]
[1770525499995,9.14122278,87.046,87.02,15.80941677]
[1770525500194,16.31135619,87.051,87.02,15.80941677]
[1770525500394,9.14232017,87.05,87.02,15.80941677]
[1770525500596,9.14232017,87.049,87.02,15.80941677]
[1770525500796,9.14232017,87.048,87.02,15.80941677]
[1770525501095,9.14232017,87.047,87.02,15.80941677]
[1770525501294,9.14232017,87.046,87.02,15.80941677]
[1770525501497,16.31135619,87.051,87.02,15.80941677]
[1770525501795,9.14203732,87.05,87.02,15.80941677]
[1770525501993,9.14203732,87.049,87.02,15.80941677]
[1770525502192,9.14203732,87.048,87.02,15.80941677]
[1770525502393,9.14203732,87.047,87.02,15.80941677]
[1770525502589,9.14203732,87.046,87.02,15.80941677]
[1770525502789,16.31135619,87.051,87.02,15.80941677]
[1770525502997,9.14192682,87.05,87.02,15.80941677]
[1770525503196,9.14192682,87.049,87.02,15.80941677]
[1770525503397,9.14192682,87.048,87.02,15.80941677]
[1770525503596,9.14192682,87.047,87.02,15.80941677]
[1770525503799,9.14192682,87.046,87.02,15.80941677]
[1770525503998,16.31135619,87.051,87.02,15.80941677]
[1770525504297,9.14184713,87.05,87.02,15.80941677]
[1770525504497,9.14184713,87.049,87.02,15.80941677]
[1770525504699,9.14184713,87.048,87.02,15.80941677]
[1770525504994,9.14184713,87.047,87.02,15.80941677]
[1770525505191,9.14184713,87.046,87.02,15.80941677]
[1770525505396,9.14184713,87.045,87.02,15.80941677]
[1770525505598,16.31135619,87.051,87.02,15.80941677]
[1770525505798,9.14438078,87.05,87.02,15.80941677]
[1770525506100,9.14438078,87.049,87.02,15.80941677]
[1770525506302,9.14438078,87.048,87.02,15.80941677]
[1770525506502,9.14438078,87.047,87.02,15.80941677]
[1770525506702,9.14438078,87.046,87.02,15.80941677]
[1770525506903,9.14438078,87.045,87.02,15.80941677]
[1770525507102,9.14438078,87.044,87.02,15.80941677]
[1770525507304,9.1508247,87.043,87.02,15.80941677]
[1770525507504,9.1508247,87.042,87.02,15.80941677]
[1770525507704,9.1508247,87.041,87.02,15.80941677]
[1770525507901,9.1508247,87.04,87.02,15.80941677]
[1770525508105,9.1508247,87.039,87.02,15.80941677]
[1770525508312,16.31135619,87.051,87.02,15.80941677]
[1770525508313,9.1508247,87.038,87.02,15.80941677]
[1770525508510,2.47e-05,87.037,87.02,15.80941677]
[1770525508711,16.31135619,87.049,86.998,15.80941677]
[1770525511114,16.31135619,87.049,87.001,15.80941677]
[1770525511311,16.31135619,87.058,87.011,15.80941677]
[1770525514616,16.31135619,87.058,87.013,10.3512]
[1770525514816,16.31135619,87.058,87.014,15.80941677]
[1770525515814,16.31135619,87.058,87.017,10.3507]
[1770525516715,16.31135619,87.058,87.02,18.3468759]
[1770525517014,3.37887118,87.07,87.02,18.3468759]
[1770525517219,10.64460001,87.084,87.034,14.96800472]
[1770525517419,10.64460001,87.083,87.034,14.96800472]
[1770525517815,3.37887118,87.08,87.034,14.96800472]
[1770525519215,15.05290902,87.079,87.034,14.96800472]
[1770525520516,15.05290902,87.077,87.034,14.96800472]
[1770525520815,15.05290902,87.075,87.034,14.96800472]
[1770525521012,15.05290902,87.073,87.034,14.96800472]
[1770525521209,15.05290902,87.071,87.034,14.96800472]